bitfinex/quotes_SOLUSD_20240530
["timestamp","ask_amount","ask_price","bid_price","bid_amount"]
[1717031190495,2.2,168.18,168.13,2.5638338]
[1717031190804,8.99,168.18,168.13,2.5638338]
[1717031191175,2.2,168.18,168.14,2.2004]
[1717031191603,2.2,168.18,168.13,2.5638338]
[1717031191805,2.2001,168.17,168.13,2.5638338]
[1717031191986,24.3994,168.21,168.13,2.5638338]
[1717031191987,2.2003,168.16,168.13,0.3632338]
[1717031193211,22.2002,168.17,168.13,2.5638338]
[1717031193382,2.2002,168.17,168.13,2.5638338]
[1717031193907,20.0,168.17,168.13,2.5638338]
[1717031194085,20.0,168.17,168.14,2.2005]
[1717031194605,8.9898,168.19,168.14,2.2005]
[1717031194816,20.0,168.18,168.14,2.2005]
[1717031195308,22.2,168.18,168.13,2.5638338]
[1717031195814,20.0,168.18,168.15,8.7942]
[1717031195989,2.1999,168.19,168.14,8.9904]
[1717031196189,8.99,168.18,168.14,2.2004]
[1717031196987,2.2001,168.17,168.13,2.5638338]
[1717031197194,6.79,168.17,168.13,0.3632338]
[1717031197518,2.2004,168.15,168.13,0.3632338]
[1717031198510,2.2005,168.15,168.13,0.3632338]
[1717031198710,8.799,168.21,168.13,0.3632338]
[1717031198711,2.2005,168.14,168.13,0.3632338]
[1717031202609,22.2005,168.14,168.13,0.3632338]
[1717031202815,33.2031,168.14,168.13,0.3632338]
[1717031202996,33.3915,168.14,168.13,0.3632338]
[1717031203697,26.6015,168.14,168.13,0.3632338]
[1717031207117,33.2031,168.14,168.13,0.3632338]
[1717031207618,26.6015,168.14,168.13,0.3632338]
[1717031209801,13.2031,168.14,168.13,0.3632338]
[1717031210001,2.2005,168.14,168.13,0.3632338]
[1717031210197,8.9905,168.14,168.13,0.3632338]
[1717031210719,2.2005,168.14,168.13,0.3632338]
[1717031210930,8.9905,168.14,168.13,0.3632338]
[1717031211103,28.9905,168.14,168.13,0.3632338]
[1717031213920,22.2005,168.14,168.13,0.3632338]
[1717031216732,2.2003,168.16,168.13,0.3632338]
[1717031217023,2.2004,168.16,168.13,0.3632338]
[1717031217223,6.79,168.17,168.14,2.2004]
[1717031217440,6.79,168.17,168.13,2.5638338]
[1717031217936,8.9902,168.17,168.13,0.3632338]
[1717031218235,22.2003,168.16,168.13,0.3632338]
[1717031219032,2.2004,168.15,168.13,0.3632338]
[1717031219213,8.9904,168.15,168.13,0.3632338]
[1717031219536,2.2005,168.14,168.13,0.3632338]
[1717031220209,19.9931,168.14,168.13,0.3632338]
[1717031220525,22.2005,168.14,168.13,0.3632338]
[1717031222813,20.0,168.14,168.13,0.3632338]
[1717031224221,22.2005,168.14,168.13,0.3632338]
[1717031224425,28.9905,168.14,168.13,0.3632338]
[1717031228414,48.7952,168.14,168.13,0.3632338]
[1717031229244,39.9931,168.14,168.13,0.3632338]
[1717031230234,46.4555,168.14,168.13,0.3632338]
[1717031230535,91.4555,168.14,168.13,0.3632338]
[1717031231316,116.1661,168.14,168.13,0.3632338]
[1717031231523,100.2576,168.14,168.13,0.3632338]
[1717031231721,26.6015,168.14,168.13,0.3632338]
[1717031231917,33.3915,168.14,168.13,0.3632338]
[1717031234320,26.6015,168.14,168.13,0.3632338]
[1717031234523,28.9905,168.14,168.13,0.3632338]
[1717031235356,73.9905,168.14,168.13,0.3632338]
[1717031237523,78.3915,168.14,168.13,0.3632338]
[1717031237844,33.3915,168.14,168.13,0.3632338]
[1717031239927,78.3915,168.14,168.13,0.3632338]
[1717031241936,100.2373,168.14,168.13,0.3632338]
[1717031243453,93.4473,168.14,168.13,0.3632338]
[1717031244161,76.0026,168.14,168.13,0.3632338]
[1717031244352,8.9905,168.14,168.13,0.3632338]
[1717031244533,2.2001,168.17,168.13,0.3632338]
[1717031244729,2.2001,168.17,168.13,6.4018338]
[1717031244730,6.79,168.17,168.13,6.4018338]
[1717031244931,8.9903,168.16,168.13,0.3632338]
[1717031245249,6.79,168.15,168.13,0.3632338]
[1717031246047,2.2005,168.15,168.13,0.3632338]
[1717031248051,2.2005,168.14,168.13,0.3632338]
[1717031250938,47.2005,168.14,168.13,0.3632338]
[1717031251259,71.6015,168.14,168.13,0.3632338]
[1717031251448,93.1334,168.14,168.13,0.3632338]
[1717031251654,87.0052,168.14,168.13,0.3632338]
[1717031252635,117.0052,168.14,168.13,0.3632338]
[1717031253338,72.0052,168.14,168.13,0.3632338]
[1717031253562,117.0052,168.14,168.13,0.3632338]
[1717031260266,123.7952,168.14,168.13,0.3632338]
[1717031260771,145.6572,168.14,168.13,0.3632338]
[1717031261275,151.81803969,168.14,168.13,0.3632338]
[1717031264764,136.37053969,168.14,168.13,0.3632338]
[1717031266944,136.37053969,168.14,168.1,0.03699805]
[1717031266945,84.95603969,168.14,168.1,0.03699805]
[1717031267151,2.2009,168.11,168.1,0.10354005]
[1717031267362,22.2009,168.11,168.1,0.10354005]
[1717031268258,28.9909,168.11,168.1,0.10354005]
[1717031272676,22.2009,168.11,168.1,0.10354005]
[1717031273568,28.9909,168.11,168.1,0.10354005]
[1717031274171,22.2009,168.11,168.1,0.10354005]
[1717031274367,2.2008,168.12,168.1,0.10354005]
[1717031274561,20.0,168.13,168.1,0.10354005]
[1717031274779,8.9908,168.12,168.1,6.20404005]
[1717031275263,6.79,168.11,168.1,6.20404005]
[1717031275474,8.9909,168.11,168.1,6.20404005]
[1717031275681,8.9909,168.11,168.1,0.10354005]
[1717031276464,28.9909,168.11,168.1,0.10354005]
[1717031284987,4.4009,168.15,168.1,0.10354005]
[1717031285288,6.79,168.12,168.1,0.10354005]
[1717031285592,25.96451111,168.17,168.1,0.10354005]
[1717031285768,2.2005,168.14,168.1,6.51454005]
[1717031285971,8.9906,168.13,168.1,6.51454005]
[1717031286166,2.2004,168.15,168.11,8.3765]
[1717031286368,2.2005,168.14,168.12,6.1756]
[1717031287181,8.9904,168.15,168.12,6.1756]
[1717031287387,2.2005,168.14,168.12,6.1756]
[1717031287587,2.2005,168.14,168.1,17.66904005]
[1717031287588,2.2005,168.14,168.1,2.30454005]
[1717031287889,2.2005,168.14,168.1,0.10354005]
[1717031288288,2.2005,168.14,168.1,8.85964005]
[1717031288592,2.2004,168.15,168.1,8.85964005]
[1717031289592,2.2004,168.15,168.11,2.2009]
[1717031289886,2.2003,168.16,168.1,6.45724005]
[1717031290091,2.2003,168.16,168.12,2.2007]
[1717031290288,2.2003,168.16,168.12,6.2501]
[1717031290508,2.2003,168.16,168.12,8.4508]
[1717031291387,2.2001,168.17,168.13,2.2006]
[1717031291701,6.79,168.16,168.13,2.2006]
[1717031291886,6.79,168.16,168.13,3.38798698]
[1717031292192,6.79,168.18,168.14,6.3379]
[1717031292490,6.79,168.18,168.15,8.5382]
[1717031293378,2.1997,168.21,168.17,2.2001]
[1717031293593,6.79,168.18,168.16,8.6915]
[1717031294091,6.79,168.18,168.13,11.0029]
[1717031294092,6.79,168.18,168.15,2.2003]
[1717031294293,6.79,168.18,168.15,8.6916]
[1717031294475,2.1998,168.2,168.16,7.49643543]
[1717031295286,6.79,168.19,168.16,8.6915]
[1717031295781,2.1996,168.21,168.17,2.2001]
[1717031295971,8.9896,168.21,168.18,6.4913]
[1717031296175,20.0,168.2,168.18,6.4913]
[1717031297301,20.0,168.2,168.18,6.557842]
[1717031298187,22.1997,168.2,168.18,6.557842]
[1717031299207,6.79,168.21,168.18,6.557842]
[1717031299380,10.9949,168.26,168.18,8.757742]
[1717031299585,2.1994,168.23,168.18,8.757742]
[1717031299789,2.1995,168.22,168.18,8.757742]
[1717031300309,6.79,168.21,168.18,8.757742]
[1717031300485,6.79,168.21,168.18,6.557842]
[1717031300818,6.79,168.21,168.18,8.757842]
[1717031300978,2.1993,168.24,168.18,6.557842]
[1717031301178,20.0,168.25,168.18,6.557842]
[1717031301179,2.1994,168.23,168.18,6.557842]
[1717031301380,2.1994,168.23,168.19,2.1998]
[1717031301586,4.3975,168.28,168.19,6.423]
[1717031301800,19.36226196,168.3,168.22,6.0047]
[1717031301981,6.79,168.26,168.23,1.63497008]
[1717031302992,2.1989,168.27,168.23,8.09087008]
[1717031303701,2.1989,168.26,168.23,8.09087008]
[1717031304077,6.17234354,168.33,168.24,8.8231]
[1717031304078,2.1986,168.29,168.24,8.8231]
[1717031304282,8.9886,168.29,168.24,8.8231]
[1717031304602,6.79,168.29,168.25,8.823]
[1717031306018,8.9886,168.29,168.25,6.624]
[1717031306310,8.9887,168.28,168.25,6.624]
[1717031307206,6.79,168.28,168.25,6.624]
[1717031307586,8.9886,168.29,168.25,6.624]
[1717031307789,2.1985,168.3,168.25,8.823]
[1717031307993,6.79,168.29,168.25,8.823]
[1717031308210,2.1985,168.3,168.25,8.823]
[1717031309792,8.9885,168.3,168.25,8.823]
[1717031310096,20.0,168.29,168.25,8.823]
[1717031311607,6.79,168.28,168.25,6.624]
[1717031312405,6.79,168.28,168.25,6.690542]
[1717031314618,22.1985,168.29,168.25,6.690542]
[1717031314789,8.9885,168.29,168.25,6.690542]
[1717031315593,8.9885,168.29,168.25,8.889542]
[1717031316413,6.79,168.29,168.25,8.889542]
[1717031316608,2.1984,168.3,168.25,8.889542]
[1717031316915,8.9884,168.3,168.26,2.1989]
[1717031317897,8.9884,168.3,168.25,8.889542]
[1717031319208,2.1985,168.29,168.25,2.265542]
[1717031319420,2.1989,168.26,168.25,0.066542]
[1717031319591,2.1989,168.27,168.25,0.066542]
[1717031319795,8.9889,168.27,168.25,0.066542]
[1717031320719,2.1989,168.26,168.25,0.066542]
[1717031321117,2.1989,168.27,168.25,0.066542]
[1717031322324,2.1989,168.26,168.25,0.066542]
[1717031324116,13.1955,168.26,168.25,0.066542]
[1717031324426,58.1955,168.26,168.25,0.066542]
[1717031324602,78.1955,168.26,168.25,0.066542]
[1717031329316,84.7924,168.26,168.25,0.066542]
[1717031330845,93.5883,168.26,168.25,0.066542]
[1717031333133,115.19661986,168.26,168.25,0.066542]
[1717031334229,121.98661986,168.26,168.25,0.066542]
[1717031336333,2.2001,168.17,168.13,8.2484]
[1717031336532,8.99,168.18,168.13,8.2484]
[1717031336715,2.2001,168.17,168.13,8.2484]
[1717031336906,6.79,168.18,168.13,8.2484]
[1717031336907,8.99,168.18,168.14,2.2005]
[1717031337816,2.2001,168.17,168.13,8.2484]
[1717031338022,8.99,168.18,168.13,8.2484]
[1717031338939,2.2001,168.17,168.13,8.2484]
[1717031340322,8.99,168.18,168.13,8.2484]
[1717031341011,8.99,168.18,168.14,2.2005]
[1717031341215,22.1999,168.19,168.15,2.2003]
[1717031341417,2.1999,168.19,168.14,8.9905]
[1717031341619,2.2,168.18,168.14,2.2005]
[1717031342016,20.0,168.19,168.16,2.2001]
[1717031342217,8.9897,168.21,168.16,2.2001]
[1717031342418,20.0,168.2,168.16,2.2001]
[1717031342743,22.1998,168.2,168.15,15.4764]
[1717031343118,22.1998,168.2,168.16,2.2002]
[1717031343321,22.1998,168.2,168.17,2.2001]
[1717031343322,20.0,168.2,168.17,2.2001]
[1717031343642,8.7968,168.25,168.18,2.1999]
[1717031343643,2.1995,168.22,168.18,2.1999]
[1717031343844,2.1995,168.22,168.18,3.69687938]
[1717031344020,2.1995,168.22,168.18,2.1999]
[1717031344334,2.1995,168.22,168.18,8.7214]
[1717031344934,8.9894,168.23,168.18,8.7214]
[1717031345446,2.1995,168.22,168.18,8.7214]
[1717031345944,2.1992,168.24,168.18,6.5215]
[1717031346150,6.79,168.23,168.19,2.1998]
[1717031346632,8.9893,168.23,168.19,2.1998]
[1717031347028,8.9893,168.23,168.18,8.7214]
[1717031347941,2.1994,168.23,168.18,8.7214]
[1717031349449,2.1995,168.22,168.18,8.7214]
[1717031349736,2.1996,168.21,168.18,6.5215]
[1717031350157,2.1995,168.22,168.18,8.7215]
[1717031350648,2.1994,168.23,168.18,8.7215]
[1717031350942,2.1995,168.22,168.18,6.5215]
[1717031351139,2.1995,168.22,168.18,8.7214]
[1717031352349,8.9894,168.23,168.18,8.7214]
[1717031352523,2.1995,168.22,168.18,8.7214]
[1717031352724,2.1995,168.22,168.18,6.5215]
[1717031354453,2.1995,168.22,168.18,8.7215]
[1717031355945,8.9894,168.23,168.19,2.1998]
[1717031356131,6.79,168.23,168.18,6.5215]
[1717031356334,8.9893,168.23,168.19,2.1998]
[1717031357927,8.9893,168.23,168.18,8.7214]
[1717031358550,2.1995,168.22,168.18,8.7214]
[1717031359436,8.9894,168.23,168.19,2.1998]
[1717031359948,6.79,168.23,168.2,2.1997]
[1717031360250,8.9893,168.23,168.19,2.1998]
[1717031360552,6.79,168.23,168.2,2.1997]
[1717031361051,2.1992,168.24,168.2,2.1997]
[1717031361240,2.1993,168.23,168.19,2.1998]
[1717031361442,2.1993,168.24,168.2,2.1997]
[1717031361636,6.79,168.23,168.2,2.1997]
[1717031361837,2.1993,168.24,168.2,2.1997]
[1717031363144,2.1993,168.23,168.19,2.1998]
[1717031363650,2.1993,168.24,168.2,2.1997]
[1717031363835,8.9893,168.24,168.2,2.1997]
[1717031364553,2.1993,168.23,168.19,2.1998]
[1717031364745,2.1993,168.23,168.18,8.7214]
[1717031364932,2.1994,168.23,168.18,8.7214]
[1717031365129,2.1994,168.23,168.19,2.1998]
[1717031365333,8.9894,168.23,168.19,2.1998]
[1717031365640,2.1997,168.2,168.13,10.4147]
[1717031365841,2.1997,168.2,168.15,8.9903]
[1717031366243,2.1997,168.2,168.16,2.2002]
[1717031367766,6.79,168.19,168.13,6.0135]
[1717031367963,2.2,168.18,168.14,2.2004]
[1717031368340,8.9899,168.19,168.15,2.2003]
[1717031368548,2.1999,168.19,168.15,2.2003]
[1717031371266,8.9898,168.2,168.15,2.2003]
[1717031371646,2.1999,168.19,168.15,2.2003]
[1717031372161,8.9898,168.2,168.15,2.2003]
[1717031375164,8.9898,168.2,168.16,2.2002]
[1717031377264,2.1998,168.19,168.15,2.2003]
[1717031378468,2.1998,168.19,168.14,2.2004]
[1717031378678,2.1998,168.2,168.15,2.2003]
[1717031379052,2.1998,168.2,168.16,2.2002]
[1717031379869,2.1998,168.2,168.15,2.2003]
[1717031380368,2.1999,168.19,168.15,2.2003]
[1717031380671,8.9899,168.19,168.15,2.2003]
[1717031381858,2.2,168.18,168.14,2.2004]
[1717031382573,8.9899,168.19,168.15,2.2004]
[1717031383965,2.1999,168.19,168.15,2.2004]
[1717031384472,6.79,168.18,168.15,2.2004]
[1717031384666,2.1999,168.19,168.15,2.2004]
[1717031384877,8.99,168.18,168.14,2.2004]
[1717031385851,2.2001,168.17,168.14,2.2004]
[1717031386570,2.2001,168.17,168.13,2.2006]
[1717031386771,8.9903,168.16,168.12,2.2007]
[1717031388873,6.79,168.16,168.13,2.2006]
[1717031389175,2.2002,168.17,168.13,2.2006]
[1717031390348,2.2002,168.16,168.13,2.2006]
[1717031393476,2.2006,168.14,168.1,0.03699805]
[1717031393650,2.2005,168.14,168.1,2.23789805]
[1717031393857,2.2005,168.14,168.11,2.2009]
[1717031394059,8.9904,168.15,168.11,2.2009]
[1717031394390,8.9904,168.15,168.12,2.2008]
[1717031394595,8.9905,168.15,168.11,2.2008]
[1717031394760,6.79,168.15,168.11,2.2008]
[1717031396061,2.2005,168.14,168.11,2.2009]
[1717031396256,20.0,168.16,168.1,0.03699805]
[1717031396457,2.2005,168.14,168.1,2.23799805]
[1717031397676,20.0,168.17,168.1,0.03699805]
[1717031397980,20.0,168.18,168.14,6.79]
[1717031398175,2.1998,168.2,168.14,6.79]
[1717031398481,2.1996,168.21,168.17,2.2001]
[1717031398679,6.485,168.26,168.17,2.2001]
[1717031398680,4.3982,168.25,168.17,2.2]
[1717031398871,8.9895,168.22,168.17,2.2]
[1717031399368,8.9895,168.22,168.18,2.2]
[1717031400058,20.0,168.21,168.18,2.2]
[1717031400463,4.3982,168.25,168.18,2.2]
[1717031400464,20.0,168.24,168.18,2.2]
[1717031400660,24.3982,168.25,168.18,2.2]
[1717031400871,24.3982,168.25,168.17,2.2001]
[1717031401284,2.1995,168.22,168.17,2.2001]
[1717031401865,20.0,168.24,168.2,2.1996]
[1717031402071,2.1993,168.24,168.19,6.79]
[1717031402265,2.1993,168.24,168.19,8.9898]
[1717031402984,20.0,168.27,168.19,2.1998]
[1717031403187,8.9897,168.21,168.17,2.2001]
[1717031403384,6.79,168.19,168.14,2.2004]
[1717031403593,2.2001,168.17,168.13,2.2006]
[1717031403762,2.2001,168.17,168.12,8.9907]
[1717031404168,8.9901,168.17,168.12,2.2007]
[1717031404690,8.9901,168.17,168.11,6.79]
[1717031404691,8.9901,168.17,168.13,2.2006]
[1717031405764,2.2003,168.16,168.12,2.2007]
[1717031406075,8.9901,168.17,168.12,2.2007]
[1717031406394,28.99,168.18,168.13,2.2006]
[1717031407085,28.99,168.18,168.14,2.2005]
[1717031407386,28.99,168.18,168.13,2.2006]
[1717031408897,20.0,168.18,168.14,2.2005]
[1717031409782,2.1997,168.21,168.16,2.2002]
[1717031409986,19.6533,168.24,168.17,2.2001]
[1717031409987,6.79,168.22,168.17,2.2001]
[1717031410162,22.1996,168.21,168.16,8.9902]
[1717031410880,22.1996,168.21,168.17,2.2001]
[1717031411489,22.1996,168.21,168.16,8.9902]
[1717031413024,22.1996,168.21,168.17,2.2001]
[1717031413983,22.1996,168.21,168.16,8.9902]
[1717031414399,2.1997,168.2,168.16,8.9902]
[1717031416312,20.0,168.21,168.18,2.1999]
[1717031416521,20.0,168.23,168.18,2.2]
[1717031416809,2.1995,168.22,168.18,2.2]
[1717031417194,22.1993,168.23,168.19,2.1998]
[1717031417397,8.9893,168.24,168.18,6.79]
[1717031417914,2.1993,168.24,168.19,4.20437903]
[1717031418200,8.9892,168.24,168.2,2.1997]
[1717031418706,2.1992,168.24,168.2,2.1997]
[1717031419081,22.1991,168.25,168.21,2.1996]
[1717031419388,2.1991,168.25,168.21,2.1995]
[1717031419804,2.1991,168.25,168.2,8.9897]
[1717031419983,2.1992,168.24,168.2,8.9897]
[1717031420305,2.1992,168.24,168.2,2.1997]
[1717031421186,8.9891,168.25,168.2,2.1997]
[1717031421491,8.9891,168.25,168.21,2.1996]
[1717031422408,2.1991,168.25,168.21,2.1996]
[1717031422615,2.1991,168.25,168.21,3.1192753]
[1717031423688,2.1991,168.25,168.21,2.1996]
[1717031425809,8.989,168.26,168.22,2.1994]
[1717031426018,6.79,168.26,168.22,2.1994]
[1717031426212,8.989,168.26,168.19,10.999]
[1717031426408,8.989,168.26,168.21,2.1995]
[1717031426914,2.1991,168.25,168.21,2.1995]
[1717031427108,8.989,168.26,168.22,2.1994]
[1717031427695,2.199,168.26,168.22,2.1994]
[1717031430418,2.1991,168.25,168.21,2.1995]
[1717031431514,2.1992,168.24,168.2,2.1997]
[1717031432416,2.1992,168.24,168.21,2.1996]
[1717031432718,2.1992,168.24,168.2,2.1996]
[1717031432901,15.393,168.26,168.15,11.0016]
[1717031433096,6.79,168.22,168.15,4.4007]
[1717031433307,2.1996,168.21,168.17,2.2]
[1717031433912,6.79,168.22,168.18,2.1999]
[1717031434317,2.1994,168.23,168.18,2.1999]
[1717031434511,2.1994,168.23,168.19,2.1998]
[1717031434898,22.1994,168.23,168.19,2.1998]
[1717031435418,22.1994,168.23,168.18,8.9899]
[1717031435613,22.1994,168.23,168.19,1.7029116]
[1717031435816,2.1994,168.23,168.19,1.7029116]
[1717031436118,2.1995,168.22,168.19,1.7029116]
[1717031436924,8.9893,168.24,168.19,3.9027116]
[1717031437418,8.9893,168.24,168.19,2.1998]
[1717031437614,2.1993,168.24,168.19,8.9898]
[1717031437807,2.1993,168.24,168.2,3.90210539]
[1717031438317,2.1993,168.24,168.2,2.1997]
[1717031438500,2.1993,168.24,168.2,8.9897]
[1717031438702,8.989,168.26,168.21,2.1995]
[1717031438901,2.199,168.26,168.21,8.9895]
[1717031439101,2.199,168.26,168.22,2.1994]
[1717031439624,2.199,168.26,168.22,4.57686274]
[1717031440512,2.199,168.26,168.22,2.1994]
[1717031441705,2.199,168.26,168.21,8.9895]
[1717031442024,2.1988,168.28,168.23,2.1992]
[1717031442214,2.1988,168.28,168.23,8.9892]
[1717031442822,2.1988,168.28,168.24,4.04912774]
[1717031443224,19.5185,168.32,168.25,2.199]
[1717031443416,2.1984,168.3,168.25,2.199]
[1717031444603,6.79,168.29,168.26,2.1989]
[1717031445018,2.1984,168.3,168.26,2.1989]
[1717031446222,2.1985,168.29,168.25,2.199]
[1717031446608,2.1984,168.3,168.25,2.199]
[1717031446802,2.1984,168.3,168.26,2.1989]
[1717031447108,6.79,168.29,168.25,2.199]
[1717031447313,2.1984,168.3,168.26,2.1989]
[1717031447808,2.1983,168.31,168.27,2.1988]
[1717031448023,6.79,168.3,168.27,2.1988]
[1717031448727,2.1983,168.31,168.27,2.1988]
[1717031449306,2.1982,168.32,168.27,2.1988]
[1717031449516,8.9882,168.32,168.28,2.1986]
[1717031449805,20.0,168.33,168.29,2.1985]
[1717031450012,2.1981,168.33,168.29,2.1985]
[1717031450423,2.1979,168.34,168.29,8.9885]
[1717031450809,2.1979,168.34,168.3,2.1983]
[1717031451114,2.1978,168.35,168.31,6.79]
[1717031451648,8.9877,168.36,168.31,8.9882]
[1717031451834,6.5164,168.41,168.32,6.79]
[1717031452010,8.9874,168.38,168.34,2.1978]
[1717031452317,8.9874,168.38,168.32,6.79]
[1717031452318,8.9874,168.38,168.33,2.198]
[1717031452513,8.9874,168.38,168.33,2.84159078]
[1717031452708,2.1975,168.37,168.33,2.84159078]
[1717031452920,2.1971,168.4,168.36,2.1976]
[1717031453228,2.1972,168.39,168.35,2.1977]
[1717031453429,6.5894,168.46,168.37,2.1974]
[1717031453633,6.79,168.42,168.37,2.1974]
[1717031453830,6.048,168.47,168.41,2.1969]
[1717031453831,12.221547,168.47,168.41,2.1969]
[1717031454037,14.417747,168.47,168.41,2.1969]
[1717031454237,14.417747,168.47,168.36,8.7901]
[1717031454238,6.79,168.46,168.4,8.9871]
[1717031454406,8.9865,168.45,168.4,2.1971]
[1717031454608,2.1966,168.44,168.39,8.9872]
[1717031455514,2.1966,168.44,168.39,2.1972]
[1717031455713,2.1966,168.44,168.39,6.79]
[1717031456229,2.1966,168.44,168.39,8.9872]
[1717031456418,2.1965,168.45,168.4,6.79]
[1717031456727,2.1965,168.45,168.39,8.9872]
[1717031456930,2.1966,168.44,168.39,8.9872]
[1717031457712,2.1966,168.44,168.39,2.1972]
[1717031458232,20.0,168.46,168.37,2.1974]
[1717031458233,6.79,168.41,168.37,2.1974]
[1717031458426,6.79,168.41,168.36,2.1975]
[1717031458427,8.987,168.41,168.36,2.1975]
[1717031458734,45.0,168.45,168.37,2.1975]
[1717031458735,2.1969,168.42,168.37,2.1975]
[1717031460528,2.1969,168.42,168.32,38.1505]
[1717031460529,20.0,168.44,168.32,10.9905]
[1717031460840,2.1972,168.39,168.34,2.1978]
[1717031461016,2.1971,168.4,168.35,2.1977]
[1717031461215,2.1971,168.4,168.35,8.9877]
[1717031461636,2.197,168.41,168.36,2.1976]
[1717031461931,2.197,168.41,168.36,8.9876]
[1717031462112,22.197,168.41,168.36,8.9876]
[1717031462535,10.4405,168.47,168.32,6.79]
[1717031462735,2.1966,168.45,168.39,2.1972]
[1717031463034,12.838,168.47,168.42,2.1968]
[1717031463237,6.048,168.47,168.42,2.1968]
[1717031463936,2.1963,168.46,168.42,2.1968]
[1717031464118,2.1963,168.46,168.41,8.9869]
[1717031464320,21.54330382,168.51,168.39,1.91048671]
[1717031464321,2.196,168.49,168.45,6.79]
[1717031464636,6.2446,168.51,168.45,6.79]
[1717031464834,6.2446,168.55,168.46,6.79]
[1717031465019,2.1956,168.52,168.47,8.9861]
[1717031465523,6.2446,168.55,168.48,6.79]
[1717031465931,2.1954,168.54,168.48,6.79]
[1717031466234,2.1954,168.54,168.49,3.38182081]
[1717031466434,2.1954,168.54,168.49,10.17182081]
[1717031466620,8.9851,168.56,168.51,2.1956]
[1717031466819,2.1951,168.56,168.51,3.38220015]
[1717031467032,8.9851,168.56,168.51,8.9856]
[1717031467236,8.9851,168.56,168.51,2.1956]
[1717031467448,8.7803,168.56,168.42,6.0619]
[1717031467616,2.1959,168.49,168.44,2.1966]
[1717031467817,2.1959,168.49,168.45,6.79]
[1717031468118,2.1959,168.49,168.44,2.1966]
[1717031468119,6.79,168.48,168.43,2.1967]
[1717031468322,8.9861,168.48,168.43,2.1967]
[1717031469132,6.2252,168.51,168.38,6.4208]
[1717031469335,6.79,168.46,168.4,6.79]
[1717031469635,2.1963,168.47,168.41,6.79]
[1717031469846,2.1961,168.48,168.43,2.1967]
[1717031470049,6.79,168.48,168.43,8.9867]
[1717031470540,2.1961,168.48,168.43,8.9867]
[1717031471043,2.1962,168.47,168.43,6.79]
[1717031471227,2.1962,168.47,168.42,2.1968]
[1717031471228,2.1962,168.47,168.42,8.9868]
[1717031471639,2.1962,168.47,168.42,2.1968]
[1717031472121,2.1962,168.47,168.42,8.9868]
[1717031473119,2.1962,168.47,168.42,6.79]
[1717031473320,2.1962,168.47,168.41,2.1969]
[1717031473529,2.1963,168.46,168.41,2.1969]
[1717031474029,20.0,168.5,168.4,6.79]
[1717031474226,45.0,168.49,168.34,6.6528]
[1717031474435,8.9871,168.41,168.35,2.1977]
[1717031474719,2.1973,168.39,168.34,2.1978]
[1717031474920,8.9871,168.4,168.34,8.9878]
[1717031475250,8.9871,168.4,168.35,2.1977]
[1717031475419,2.1973,168.39,168.3,17.0383]
[1717031475618,2.1975,168.38,168.32,8.9881]
[1717031475822,2.1975,168.38,168.32,6.79]
[1717031476025,2.1975,168.38,168.33,2.198]
[1717031476226,2.1975,168.38,168.32,6.79]
[1717031476227,2.1975,168.38,168.32,2.1981]
[1717031476431,2.1975,168.38,168.33,2.1979]
[1717031476645,2.1973,168.39,168.34,2.1979]
[1717031476828,2.1973,168.39,168.33,2.198]